bitfinex/quotes_SOLUSD_20250815
["timestamp","ask_amount","ask_price","bid_price","bid_amount"]
[1755299293974,0.06,186.56,186.53,10.08643758]
[1755299294363,0.06,186.56,186.54,0.71]
[1755299294789,0.06,186.56,186.55,5.36049316]
[1755299296999,0.06,186.58,186.55,15.44693074]
[1755299297170,0.06,186.58,186.57,9.37643758]
[1755299297370,0.06,186.6,186.57,9.37643758]
[1755299297599,0.06,186.62,186.59,9.37643758]
[1755299297774,0.06,186.67,186.64,9.37643758]
[1755299298281,0.06,186.67,186.64,10.08643758]
[1755299298490,9.43643758,186.66,186.61,0.71]
[1755299298794,9.37643758,186.62,186.57,41.68]
[1755299298995,4.00961011,186.64,186.57,41.68]
[1755299298996,9.37643758,186.59,186.57,41.68]
[1755299299292,9.37643758,186.59,186.56,5.3601679]
[1755299299480,12.96604769,186.61,186.57,0.71]
[1755299299680,9.37643758,186.61,186.58,0.71]
[1755299299884,9.37643758,186.61,186.56,14.73660548]
[1755299299885,9.37643758,186.61,186.57,0.71]
[1755299300602,12.96785209,186.61,186.56,5.3601679]
[1755299300775,9.37643758,186.61,186.57,6.06966188]
[1755299301301,9.37643758,186.6,186.57,5.35966188]
[1755299302407,9.37643758,186.59,186.55,41.7]
[1755299302610,9.37643758,186.56,186.53,5.36078651]
[1755299302908,9.37643758,186.56,186.52,5.36135535]
[1755299303205,0.06,186.66,186.55,9.37643758]
[1755299303433,3.59151195,186.64,186.6,9.37643758]
[1755299303607,3.65151195,186.65,186.62,9.37643758]
[1755299303817,0.06,186.65,186.62,9.37643758]
[1755299304314,0.06,186.65,186.62,0.71]
[1755299304614,9.37643758,186.64,186.59,0.71]
[1755299304808,9.37643758,186.63,186.57,9.37643758]
[1755299305015,9.37643758,186.63,186.58,5.35963125]
[1755299305375,9.37643758,186.61,186.58,5.35963125]
[1755299305581,9.37643758,186.59,186.5,9.37643758]
[1755299305812,9.37643758,186.56,186.51,41.56]
[1755299306114,9.37643758,186.56,186.51,51.64643758]
[1755299306301,9.37643758,186.56,186.52,0.71]
[1755299306485,9.37643758,186.56,186.53,0.71]
[1755299306913,15.10621557,186.62,186.55,5.36049316]
[1755299306914,9.37643758,186.59,186.55,5.36049316]
[1755299307209,9.37643758,186.59,186.55,6.07049316]
[1755299307409,9.37643758,186.58,186.55,6.07049316]
[1755299307713,9.37643758,186.57,186.55,5.36049316]
[1755299307922,9.79643758,186.56,186.48,0.71]
[1755299308096,9.37643758,186.49,186.45,0.74]
[1755299308300,3.59183036,186.54,186.48,9.37643758]
[1755299308511,9.37643758,186.56,186.51,9.37643758]
[1755299308826,26.0,186.58,186.5,41.58]
[1755299309025,26.0,186.58,186.46,97.97078193]
[1755299309026,9.37643758,186.51,186.46,46.94308055]
[1755299309195,9.37643758,186.49,186.46,46.94308055]
[1755299309388,9.37643758,186.5,186.46,47.65308055]
[1755299309819,3.59233857,186.54,186.47,10.08643758]
[1755299310026,26.0,186.59,186.51,9.37643758]
[1755299310188,9.37643758,186.57,186.51,51.68643758]
[1755299310386,12.9690382,186.57,186.52,9.37643758]
[1755299310613,9.37643758,186.57,186.52,9.37643758]
[1755299310817,9.37643758,186.54,186.51,41.6]
[1755299311111,9.37643758,186.52,186.48,5.36250536]
[1755299311613,9.37643758,186.52,186.48,6.07250536]
[1755299311817,3.5926414,186.55,186.48,6.07250536]
[1755299311818,9.37643758,186.54,186.49,0.71]
[1755299312012,5.36022435,186.56,186.48,5.36250536]
[1755299312194,9.37643758,186.49,186.47,41.6]
[1755299312508,9.37643758,186.5,186.47,42.31]
[1755299312900,3.59320448,186.53,186.47,42.31]
[1755299313092,9.37643758,186.51,186.47,47.67269626]
[1755299313294,9.37643758,186.5,186.47,47.67269626]
[1755299313818,9.37643758,186.51,186.47,47.67269626]
[1755299314017,9.37643758,186.51,186.48,0.71]
[1755299314323,9.37643758,186.51,186.47,46.96269626]
[1755299314324,9.37643758,186.5,186.47,46.96269626]
[1755299314500,9.37643758,186.5,186.47,47.67269626]
[1755299315425,9.37643758,186.49,186.47,41.6]
[1755299316192,9.37643758,186.5,186.47,46.96276446]
[1755299316418,9.37643758,186.5,186.47,47.67276446]
[1755299316632,9.37643758,186.5,186.47,46.96276446]
[1755299316925,9.37643758,186.48,186.45,0.03]
[1755299317090,9.37643758,186.46,186.45,0.03]
[1755299317493,9.37643758,186.5,186.45,10.11643758]
[1755299317825,9.37643758,186.51,186.46,10.08643758]
[1755299317995,9.37643758,186.51,186.47,0.71]
[1755299318618,15.10621557,186.55,186.48,0.71]
[1755299318811,9.37643758,186.49,186.45,42.18]
[1755299319007,9.37643758,186.48,186.45,42.18]
[1755299319196,9.37643758,186.49,186.46,5.36308055]
[1755299319392,9.37643758,186.5,186.46,6.07308055]
[1755299319597,9.37643758,186.49,186.46,6.07308055]
[1755299319806,3.59125745,186.53,186.46,6.07308055]
[1755299319807,9.37643758,186.5,186.46,6.07308055]
[1755299320004,9.37643758,186.5,186.46,5.36308055]
[1755299320217,18.69747302,186.53,186.46,5.36308055]
[1755299320523,3.59125745,186.52,186.46,5.36308055]
[1755299320722,5.36055632,186.55,186.46,5.36308055]
[1755299320723,26.0,186.55,186.46,28.14721951]
[1755299321024,9.37643758,186.5,186.46,5.36308055]
[1755299321222,9.37643758,186.49,186.46,5.36308055]
[1755299321592,9.37643758,186.5,186.46,6.07308055]
[1755299322302,9.37643758,186.51,186.47,0.71]
[1755299322501,3.59068427,186.54,186.5,9.37643758]
[1755299322723,12.96686403,186.6,186.53,9.37643758]
[1755299322929,9.37643758,186.58,186.53,10.08643758]
[1755299323246,0.06,186.62,186.57,9.37643758]
[1755299323535,0.06,186.62,186.6,9.37643758]
[1755299323716,0.06,186.62,186.61,9.37643758]
[1755299324211,0.06,186.62,186.61,0.71]
[1755299324603,0.06,186.62,186.61,10.08643758]
[1755299325030,0.06,186.62,186.61,0.71]
[1755299325350,0.06,186.62,186.59,5.35934401]
[1755299325504,9.37643758,186.6,186.57,47.11965326]
[1755299325704,9.37643758,186.59,186.57,47.11965326]
[1755299325897,9.37643758,186.59,186.57,41.76]
[1755299326403,9.37643758,186.58,186.57,41.76]
[1755299326606,9.37643758,186.58,186.56,5.36020517]
[1755299326825,9.37643758,186.58,186.55,5.36048545]
[1755299327337,5.3590568,186.6,186.53,41.7]
[1755299327514,9.37643758,186.56,186.53,41.7]
[1755299327702,9.37643758,186.54,186.53,41.7]
[1755299328328,9.37643758,186.54,186.5,5.36193029]
[1755299328703,9.37643758,186.53,186.5,5.36193029]
[1755299328924,9.37643758,186.53,186.5,6.06193029]
[1755299329406,9.37643758,186.53,186.49,41.68]
[1755299329407,9.37643758,186.53,186.49,47.04216266]
[1755299330109,9.37643758,186.53,186.49,47.74216266]
[1755299330627,15.10621557,186.56,186.48,9.40643758]
[1755299330628,9.37643758,186.5,186.48,0.03]
[1755299330828,0.42,186.52,186.48,0.03]
[1755299330829,9.37643758,186.49,186.48,0.03]
[1755299331002,15.10621557,186.51,186.48,0.73]
[1755299331202,26.0,186.53,186.48,0.73]
[1755299331203,26.0,186.56,186.5,9.37643758]
[1755299331399,9.37643758,186.55,186.5,14.73836787]
[1755299331611,26.42,186.57,186.48,0.03]
[1755299331612,9.37643758,186.51,186.48,0.03]
[1755299331814,9.37643758,186.49,186.48,0.03]
[1755299332016,9.37643758,186.51,186.48,5.39250536]
[1755299332430,3.59031628,186.54,186.48,5.39250536]
[1755299332633,9.37643758,186.51,186.48,6.09250536]
[1755299332812,9.37643758,186.52,186.48,6.09250536]
[1755299333008,3.59062094,186.54,186.49,10.07643758]
[1755299333337,9.37643758,186.55,186.5,10.07643758]
[1755299333520,9.37643758,186.55,186.5,9.37643758]
[1755299333725,9.37643758,186.55,186.51,0.7]
[1755299334416,15.10621557,186.6,186.54,9.37643758]
[1755299334629,3.59167872,186.59,186.55,9.37643758]
[1755299334815,3.59167872,186.6,186.56,0.7]
[1755299335011,9.37643758,186.61,186.56,10.07643758]
[1755299335217,3.59081343,186.61,186.57,14.7363561]
[1755299335406,3.59081343,186.61,186.59,9.37643758]
[1755299335608,3.59081343,186.61,186.58,10.07643758]
[1755299335832,0.06,186.62,186.58,0.7]
[1755299336136,0.06,186.62,186.59,10.07643758]
[1755299336336,0.06,186.62,186.6,9.37643758]
[1755299336539,0.06,186.62,186.6,0.7]
[1755299336844,0.06,186.62,186.61,10.07643758]
[1755299337431,0.06,186.62,186.59,41.88]
[1755299337628,9.43643758,186.62,186.59,41.88]
[1755299337936,9.43643758,186.62,186.59,47.23927525]
[1755299338310,9.43643758,186.62,186.59,41.88]
[1755299338510,9.37643758,186.6,186.56,5.36017227]
[1755299338737,0.48,186.62,186.56,5.36017227]
[1755299338738,9.37643758,186.59,186.56,5.36017227]
[1755299338949,9.37643758,186.57,186.5,0.7]
[1755299339115,9.37643758,186.54,186.5,42.56]
[1755299339316,9.37643758,186.55,186.5,42.56]
[1755299339533,9.37643758,186.55,186.51,6.0616428]
[1755299339739,9.37643758,186.55,186.51,0.7]
[1755299340035,9.37643758,186.58,186.53,9.37643758]
[1755299340221,30.4882176,186.64,186.57,9.37643758]
[1755299342952,9.37643758,186.56,186.52,0.03]
[1755299343244,3.59109669,186.58,186.54,9.37643758]
[1755299343626,3.59109669,186.58,186.56,5.36020583]
[1755299343922,12.96753427,186.58,186.56,5.36020583]
[1755299344120,9.37643758,186.57,186.54,0.03]
[1755299344440,9.37643758,186.55,186.54,0.03]
[1755299344617,0.42,186.57,186.54,0.03]
[1755299344820,9.37643758,186.55,186.54,0.03]
[1755299345021,9.37643758,186.56,186.54,0.03]
[1755299345346,9.37643758,186.59,186.54,6.0907026]
[1755299345536,3.59455428,186.58,186.54,15.46714018]
[1755299346054,3.59455428,186.58,186.55,0.7]
[1755299347444,3.59455428,186.58,186.54,14.76714018]
[1755299347445,12.97099186,186.58,186.54,5.3907026]
[1755299347621,9.37643758,186.57,186.54,0.03]
[1755299348021,9.37643758,186.56,186.54,0.03]
[1755299348246,9.37643758,186.55,186.54,0.03]
[1755299348434,12.97154445,186.55,186.54,0.03]
[1755299349441,32.49458003,186.55,186.54,0.03]
[1755299349748,37.85507319,186.55,186.54,0.03]
[1755299351538,42.34329079,186.55,186.54,0.03]
[1755299351738,38.34647078,186.55,186.54,0.03]
[1755299351935,42.34546802,186.55,186.54,0.03]
[1755299355055,41.92546802,186.55,186.54,0.03]
[1755299355234,41.92437954,186.55,186.54,0.03]
[1755299356530,22.6992312,186.55,186.54,0.03]
[1755299356856,58.07566878,186.55,186.54,0.03]
[1755299357569,33.59301563,186.55,186.54,0.03]
[1755299357729,3.59510687,186.55,186.54,0.71]
[1755299357935,12.97154445,186.55,186.54,0.03]
[1755299358937,32.07413914,186.55,186.54,0.03]
[1755299359261,37.8546323,186.55,186.54,0.03]
[1755299359564,83.6028499,186.55,186.54,0.03]
[1755299359851,83.6028499,186.55,186.52,0.03]
[1755299359852,15.10621557,186.54,186.52,0.03]
[1755299360027,16.96792357,186.53,186.52,0.03]
[1755299360229,22.32899149,186.53,186.52,0.03]
[1755299360431,37.85520706,186.53,186.52,0.03]
[1755299360631,15.10621557,186.51,186.5,0.03]
[1755299360842,73.31413914,186.51,186.5,0.03]
[1755299362261,78.67578194,186.51,186.5,0.03]
[1755299362558,79.09578194,186.51,186.5,0.03]
[1755299362867,73.31413914,186.51,186.5,0.03]
[1755299363031,104.67578194,186.51,186.5,0.03]
[1755299366439,95.29934436,186.51,186.5,0.03]
[1755299366638,74.83148599,186.51,186.5,0.03]
[1755299366853,3.59510687,186.51,186.5,0.71]
[1755299367160,5.98862719,186.51,186.5,0.71]
[1755299367361,9.58373406,186.51,186.5,0.71]
[1755299368140,9.58373406,186.51,186.5,6.07193029]
[1755299368341,9.58373406,186.51,186.5,0.71]
[1755299368536,24.68994963,186.51,186.5,0.03]
[1755299368769,28.68484733,186.51,186.5,0.03]
[1755299368946,69.82484733,186.51,186.5,0.03]
[1755299369351,75.60649013,186.51,186.5,0.03]
[1755299369864,75.18649013,186.51,186.5,0.03]
[1755299370641,75.18649013,186.51,186.48,0.03]
[1755299370642,26.0,186.49,186.48,0.03]
[1755299370860,80.69863176,186.49,186.48,0.03]
[1755299372273,101.16706514,186.49,186.48,0.03]
[1755299372773,101.16706514,186.49,186.48,0.71]
[1755299372774,9.58373406,186.49,186.48,0.71]
[1755299372972,9.58373406,186.5,186.48,0.71]
[1755299373177,35.58373406,186.49,186.48,0.03]
[1755299374178,60.04792177,186.49,186.48,0.03]
[1755299374782,39.57948839,186.49,186.48,0.03]
[1755299374981,5.98862719,186.49,186.48,0.71]
[1755299376065,9.58448613,186.49,186.48,0.03]
[1755299376271,60.4679032,186.49,186.48,0.03]
[1755299376469,64.96486996,186.49,186.48,0.03]
[1755299377780,38.96486996,186.49,186.48,0.03]
[1755299378388,38.96486996,186.49,186.45,0.03]
[1755299378389,26.0,186.46,186.45,0.03]
[1755299378585,26.0,186.46,186.44,0.03]
[1755299378586,41.10621557,186.43,186.42,0.03]
[1755299378785,41.10621557,186.43,186.35,0.88]
[1755299378786,26.0,186.36,186.35,0.2]
[1755299378984,50.6907017,186.36,186.35,0.2]
[1755299379197,54.68639665,186.36,186.35,0.2]
[1755299380268,60.46691166,186.36,186.35,0.2]
[1755299380473,41.10621557,186.32,186.28,1.2809322]
[1755299380788,98.98374219,186.32,186.28,1.2809322]
[1755299381001,35.43141608,186.32,186.31,0.88]
[1755299381397,9.43141608,186.33,186.31,6.24739842]
[1755299381610,9.43141608,186.33,186.32,0.68]
[1755299382183,15.10621557,186.32,186.31,0.2]
[1755299382375,32.10586574,186.32,186.31,0.2]
[1755299382580,26.0,186.37,186.31,6.24739842]
[1755299382773,4.4951557,186.39,186.32,0.68]
[1755299382774,33.56782152,186.36,186.32,0.68]
[1755299383003,4.4951557,186.41,186.32,0.68]
[1755299383292,3.58487524,186.4,186.36,9.43141608]
[1755299383497,13.01629132,186.4,186.37,0.68]
[1755299383699,15.10621557,186.42,186.31,18.98589447]
[1755299383874,9.43141608,186.39,186.34,10.11141608]
[1755299384071,15.10621557,186.42,186.31,18.98589447]
[1755299384072,3.58423868,186.4,186.37,9.43141608]
[1755299384281,3.58348196,186.41,186.38,0.68]
[1755299384473,3.58348196,186.41,186.31,18.98589447]
[1755299384474,9.43141608,186.41,186.39,5.36509469]
[1755299384676,9.43141608,186.42,186.4,0.68]
[1755299384981,41.10621557,186.45,186.37,5.36567044]
[1755299384982,13.01476998,186.41,186.37,5.36567044]
[1755299385172,41.10621557,186.45,186.33,0.68]
[1755299385173,9.43141608,186.38,186.33,0.68]
[1755299385378,9.43141608,186.36,186.33,0.68]
[1755299385576,13.01476998,186.38,186.33,10.11141608]
[1755299385774,9.43141608,186.38,186.34,0.68]
[1755299385989,9.43141608,186.38,186.35,0.68]
[1755299386182,9.43141608,186.39,186.36,0.68]
[1755299386377,13.01512681,186.39,186.36,0.68]
[1755299386703,15.10621557,186.42,186.33,0.68]
[1755299386704,9.43141608,186.37,186.33,0.68]
[1755299386884,9.43141608,186.37,186.33,6.04673732]
[1755299387198,3.58420609,186.39,186.34,10.11141608]
[1755299387389,9.43141608,186.39,186.35,0.68]
[1755299387590,9.43141608,186.39,186.33,5.36673732]
[1755299387591,13.01562217,186.38,186.33,5.36673732]
[1755299387793,13.01562217,186.38,186.31,41.02]
[1755299387794,9.43141608,186.34,186.31,0.2]
[1755299388106,9.43141608,186.32,186.31,0.2]
[1755299389200,26.0,186.34,186.31,6.24728654]
[1755299389407,9.43141608,186.35,186.31,6.24728654]
[1755299389573,9.43141608,186.33,186.31,0.2]
[1755299389778,9.43141608,186.32,186.31,0.2]
[1755299390501,18.38177664,186.32,186.31,0.2]
[1755299390702,13.0146663,186.32,186.31,0.2]
[1755299391699,33.48799221,186.32,186.31,0.2]
[1755299391899,34.20799221,186.32,186.31,0.2]
[1755299392913,28.12088187,186.32,186.31,0.2]
[1755299393405,39.0146663,186.32,186.31,0.2]
[1755299393575,59.48799221,186.32,186.31,0.2]
[1755299393776,60.20799221,186.32,186.31,0.2]
[1755299394187,44.68946579,186.32,186.31,0.2]
[1755299394404,59.48799221,186.32,186.31,0.2]
[1755299394712,60.20799221,186.32,186.31,0.2]
[1755299395081,64.18573782,186.32,186.31,0.2]
[1755299396892,38.18573782,186.32,186.31,0.2]
[1755299397077,38.18573782,186.32,186.29,0.03]
[1755299397078,15.10621557,186.3,186.29,0.03]
[1755299397288,72.81862748,186.3,186.29,0.03]
[1755299397490,78.00791212,186.3,186.29,0.03]
[1755299398314,63.38408505,186.3,186.29,0.03]
[1755299398615,72.81550113,186.3,186.29,0.03]
[1755299399112,63.38408505,186.3,186.29,0.03]
[1755299399296,98.81550113,186.3,186.29,0.03]
[1755299399706,3.97461926,186.3,186.29,0.03]
[1755299400001,54.51225091,186.3,186.29,0.03]
[1755299400189,33.54977707,186.3,186.29,0.03]
[1755299400391,3.97461926,186.3,186.29,0.71]
[1755299400594,3.97461926,186.3,186.29,0.03]
[1755299400818,32.08740872,186.3,186.29,0.03]
[1755299401050,78.93509524,186.3,186.29,0.03]
[1755299401207,69.50367916,186.3,186.29,0.03]
[1755299401397,78.93509524,186.3,186.29,0.03]
[1755299401995,78.93509524,186.3,186.29,1e-08]
[1755299401996,83.40750623,186.3,186.29,1e-08]
[1755299402208,41.10621557,186.26,186.18,0.68]
[1755299402408,9.43141608,186.21,186.18,0.68]
[1755299402726,6.00557681,186.21,186.18,0.68]
[1755299403125,6.00557681,186.21,186.19,0.68]
[1755299403300,6.00557681,186.2,186.18,0.68]
[1755299404291,6.00557681,186.2,186.16,5.37172324]
[1755299404612,6.00557681,186.2,186.17,0.68]
[1755299404820,40.76,186.23,186.16,5.37172324]
[1755299404821,3.57388357,186.22,186.16,5.37172324]
[1755299405019,40.76,186.23,186.14,13.43038528]
[1755299405020,6.00557681,186.21,186.19,5.37085772]
[1755299405330,6.00557681,186.21,186.18,6.05107029]
[1755299405627,6.00557681,186.21,186.18,5.37107029]
[1755299405922,6.00557681,186.2,186.17,5.37137012]
[1755299406125,6.00557681,186.18,186.12,0.2]
[1755299406423,46.74557681,186.21,186.16,6.00557681]
[1755299406727,7.54049602,186.2,186.17,0.68]
[1755299406931,7.54049602,186.19,186.17,0.68]
[1755299407132,3.57232525,186.2,186.18,5.3711462]
[1755299407301,7.53914403,186.19,186.17,6.05136558]
[1755299407618,40.74,186.23,186.18,0.68]
[1755299407929,7.53794056,186.22,186.18,0.68]
[1755299408113,7.53794056,186.21,186.18,0.68]
[1755299408309,7.53794056,186.2,186.18,0.68]
[1755299408634,3.56994895,186.23,186.18,0.68]
[1755299408814,3.56994895,186.26,186.18,0.68]
[1755299409014,7.53541867,186.25,186.18,0.68]
[1755299409216,3.96617319,186.24,186.19,18.79800203]
[1755299409417,3.56974256,186.27,186.2,0.68]
[1755299409611,7.53571545,186.26,186.2,0.68]
[1755299409805,3.56954307,186.28,186.2,0.68]
[1755299410005,3.96574933,186.27,186.22,26.0]
[1755299410202,4.46834348,186.37,186.24,26.0]
[1755299410407,7.53519548,186.36,186.25,1.21691275]
[1755299410633,7.53519548,186.35,186.27,26.0]
[1755299410810,0.06,186.38,186.28,1.21682628]
[1755299411013,7.53443765,186.37,186.29,41.44]
[1755299411230,0.06,186.38,186.31,45.62288657]
[1755299411431,0.06,186.42,186.34,26.0]
[1755299411611,0.06,186.42,186.34,26.53665342]
[1755299411811,0.06,186.42,186.35,0.68]
[1755299412125,7.53397323,186.41,186.35,0.68]
[1755299412312,7.53397323,186.4,186.35,0.68]
[1755299412517,3.96509532,186.39,186.36,0.68]
[1755299412725,3.57058383,186.41,186.36,0.68]
[1755299412929,0.06,186.42,186.36,0.68]
[1755299412930,7.53775918,186.4,186.36,0.68]
[1755299413131,3.96717535,186.39,186.35,5.36624631]
[1755299413434,3.57222075,186.41,186.36,0.68]
[1755299413633,3.96892375,186.4,186.37,0.68]
[1755299413828,0.06,186.42,186.38,0.68]
[1755299414034,7.54101623,186.41,186.38,0.68]
[1755299414239,3.96888599,186.4,186.38,0.68]
[1755299414417,3.96888599,186.4,186.35,18.78186208]
[1755299414418,0.06,186.42,186.39,0.68]
[1755299414620,3.9698417,186.41,186.4,0.68]
[1755299415031,3.9698417,186.41,186.4,18.33490317]
[1755299415231,3.9698417,186.41,186.4,23.69971003]
[1755299415437,3.97037963,186.41,186.4,23.01971003]
[1755299416014,7.54400962,186.41,186.38,23.02004172]
[1755299416230,0.06,186.42,186.38,5.36513855]
[1755299416510,7.54565896,186.41,186.38,5.36513855]
[1755299416738,0.06,186.42,186.38,6.04513855]
[1755299416919,7.54566005,186.41,186.38,6.04513855]
[1755299417119,0.06,186.42,186.4,17.65490317]
[1755299417437,0.06,186.42,186.41,23.01942224]
[1755299417613,0.06,186.42,186.41,23.69942224]
[1755299417919,0.06,186.42,186.41,6.04451907]
[1755299418245,1e-08,186.42,186.41,24.23587414]
[1755299418413,1e-08,186.44,186.41,24.23587414]
[1755299418615,1e-08,186.44,186.42,0.68]
[1755299419135,1e-08,186.44,186.43,18.33490317]
[1755299419326,1e-08,186.44,186.43,23.69884674]
[1755299419728,1e-08,186.44,186.43,6.04394357]
[1755299419931,1e-08,186.44,186.43,23.01884674]
[1755299420120,1e-08,186.44,186.4,41.4]
[1755299420121,1e-08,186.44,186.4,58.37490317]
[1755299420324,0.69000001,186.44,186.4,40.72]
[1755299420539,1e-08,186.44,186.4,40.72]
[1755299420729,1e-08,186.44,186.4,58.37490317]
[1755299420923,1e-08,186.44,186.4,40.72]
[1755299421236,1e-08,186.44,186.4,58.37490317]
[1755299421931,1e-08,186.44,186.41,5.36451907]
[1755299423335,1e-08,186.44,186.42,17.65490317]
[1755299423923,1e-08,186.44,186.43,17.65490317]
[1755299424954,1e-08,186.44,186.41,5.36451907]
[1755299425242,1e-08,186.44,186.41,23.01942224]
[1755299425544,7.54271818,186.44,186.41,23.01942224]
[1755299425747,1e-08,186.44,186.41,23.01942224]
[1755299425920,1e-08,186.44,186.43,17.65490317]
[1755299426320,1e-08,186.44,186.42,0.68]
[1755299426543,1e-08,186.44,186.42,17.65490317]
[1755299426920,1e-08,186.44,186.43,17.65490317]
[1755299427121,1e-08,186.44,186.43,18.33490317]
[1755299427353,1e-08,186.44,186.43,23.69884674]
[1755299427568,1e-08,186.44,186.43,6.04394357]
[1755299427749,1e-08,186.44,186.43,23.01884674]
[1755299428754,1e-08,186.44,186.41,46.06451907]
[1755299428952,1e-08,186.44,186.41,63.71942224]
[1755299429158,17.65490318,186.44,186.41,40.7]
[1755299429356,1e-08,186.44,186.41,40.7]
[1755299429560,1e-08,186.44,186.41,63.7193024]
[1755299429737,17.65490318,186.44,186.41,40.7]
[1755299429946,1e-08,186.44,186.41,40.7]
[1755299430150,1e-08,186.44,186.41,46.06445903]
[1755299430332,1e-08,186.44,186.41,40.7]
[1755299430530,0.69,186.43,186.4,5.36474136]
[1755299431030,1e-08,186.44,186.4,5.36474136]
[1755299431260,1e-08,186.44,186.4,23.01964453]
[1755299431757,18.34490318,186.44,186.4,5.36474136]
[1755299432056,1e-08,186.44,186.4,23.01964453]
[1755299432257,1e-08,186.44,186.41,17.65490317]
[1755299432463,1e-08,186.44,186.41,18.33490317]
[1755299432756,1e-08,186.44,186.41,11.90936362]
[1755299432945,1e-08,186.44,186.41,0.68]
[1755299433137,1e-08,186.44,186.42,5.3642313]
[1755299434052,1e-08,186.44,186.43,11.90936362]
[1755299435065,1e-08,186.44,186.43,17.27330719]
[1755299435276,1e-08,186.44,186.43,17.80970154]
[1755299436076,1e-08,186.44,186.43,6.58033792]
[1755299436246,1e-08,186.44,186.43,17.27330719]
[1755299437052,1e-08,186.46,186.43,17.80970154]
[1755299437249,1e-08,186.46,186.45,11.22936362]
[1755299437462,1e-08,186.46,186.45,51.90936362]
[1755299439070,1e-08,186.46,186.45,57.27273181]
[1755299439968,1e-08,186.46,186.45,57.95273181]
[1755299440965,1e-08,186.46,186.45,137.15273181]
[1755299441271,1e-08,186.48,186.45,137.15273181]
[1755299441467,1e-08,186.5,186.47,37.22936362]
[1755299441771,0.89,186.59,186.49,11.22936362]
[1755299441956,0.89,186.59,186.55,11.22936362]
[1755299442275,0.89,186.59,186.55,51.90936362]
[1755299443155,0.89,186.59,186.55,57.26985678]
[1755299443357,0.89,186.59,186.55,71.35108969]
[1755299443358,0.2,186.59,186.55,71.35108969]
[1755299443557,0.2,186.59,186.58,11.22936362]
[1755299443869,0.2,186.59,186.58,51.90936362]
[1755299444372,0.89,186.59,186.55,16.58985678]
[1755299444675,0.89,186.59,186.52,13.40312007]
[1755299444676,11.22936362,186.57,186.54,40.68]
[1755299444984,0.69,186.56,186.54,40.68]
[1755299445283,11.22936362,186.57,186.54,40.68]
[1755299445458,11.22936362,186.57,186.36,26.85862467]
[1755299445459,11.88936362,186.55,186.51,40.66]
[1755299445647,5.5593978,186.59,186.51,40.66]
[1755299445648,15.17979722,186.54,186.51,40.66]
[1755299445848,11.22936362,186.52,186.46,11.229364]
[1755299446110,15.84108786,186.51,186.47,46.02279294]
[1755299446266,11.22936362,186.51,186.47,46.02279294]
[1755299446455,11.22936362,186.52,186.47,57.25215656]
[1755299446654,3.95191733,186.51,186.47,57.25215656]
[1755299446853,11.88936362,186.55,186.49,11.22936362]
[1755299447054,7.50939626,186.54,186.5,40.66]
[1755299447355,11.22936362,186.51,186.5,40.66]
[1755299447564,15.84393526,186.51,186.48,40.66]
[1755299447748,15.84393526,186.5,186.48,40.66]
[1755299447949,4.61489288,186.49,186.46,5.36303046]
[1755299448176,0.66,186.49,186.46,46.02303046]
[1755299448356,3.95756761,186.48,186.46,46.02303046]
[1755299448558,3.56188369,186.5,186.46,46.02303046]
[1755299448880,3.95750216,186.49,186.46,46.02303046]
[1755299449061,35.82890901,186.55,186.43,24.63885544]
[1755299449062,4.61743454,186.48,186.43,24.63885544]
[1755299449379,11.22936362,186.44,186.41,5.36451907]
[1755299449575,3.96110601,186.43,186.41,5.36451907]
[1755299449752,0.66,186.44,186.41,5.36451907]
[1755299449962,3.96202834,186.43,186.41,5.36451907]
[1755299450155,3.96590864,186.42,186.41,5.36451907]
[1755299451277,7.54049832,186.42,186.41,5.36451907]
[1755299451463,3.96590864,186.42,186.41,5.36451907]
[1755299451664,7.5404376,186.42,186.41,5.36451907]
[1755299453692,7.5404376,186.42,186.41,16.59388269]
[1755299454082,4.46834348,186.44,186.41,16.59388269]
[1755299454391,7.57225118,186.43,186.42,0.7]